bitfinex/quotes_BTCUSD_20240723
["timestamp","ask_amount","ask_price","bid_price","bid_amount"]
[1721764932439,0.160598,65760.0,65759.0,0.39159611]
[1721764932864,0.76887,65760.0,65759.0,0.35515439]
[1721764933072,0.464734,65760.0,65759.0,0.35515439]
[1721764933324,0.464734,65760.0,65759.0,0.35815439]
[1721764933534,0.464734,65760.0,65759.0,0.35515439]
[1721764933740,0.76887,65760.0,65759.0,0.35515439]
[1721764933955,0.76887,65760.0,65759.0,0.36915439]
[1721764933956,1.26702591,65760.0,65759.0,0.36915439]
[1721764934174,1.32772591,65760.0,65759.0,0.3811405]
[1721764934391,1.32772591,65760.0,65759.0,0.1383407]
[1721764934605,1.32772591,65760.0,65759.0,0.1523407]
[1721764935445,0.82957,65760.0,65759.0,0.16757477]
[1721764935676,0.160598,65760.0,65759.0,0.16757477]
[1721764936092,0.160598,65760.0,65759.0,0.15557477]
[1721764936310,0.76987,65760.0,65759.0,0.1273407]
[1721764936515,0.465734,65760.0,65759.0,0.1273407]
[1721764936734,0.00953,65760.0,65759.0,0.1273407]
[1721764937182,0.00953,65760.0,65759.0,0.3561378]
[1721764937412,0.00853,65760.0,65759.0,0.03561378]
[1721764937637,0.00853,65760.0,65759.0,0.31578946]
[1721764937858,0.00858,65763.0,65759.0,0.59880937]
[1721764938079,0.00858,65763.0,65760.0,0.44158346]
[1721764938291,0.00858,65763.0,65761.0,0.36747963]
[1721764938503,0.00858,65763.0,65762.0,0.41578946]
[1721764940050,0.00858,65763.0,65762.0,0.42078946]
[1721764940262,0.00858,65763.0,65762.0,0.74287237]
[1721764940483,0.00858,65763.0,65762.0,0.73787237]
[1721764940704,0.00858,65763.0,65762.0,0.74271166]
[1721764940938,0.00858,65763.0,65762.0,0.74771166]
[1721764941177,0.00858,65763.0,65762.0,0.73771166]
[1721764941375,0.00858,65763.0,65762.0,0.88477466]
[1721764941578,0.00858,65763.0,65762.0,0.74671166]
[1721764942012,0.00858,65763.0,65762.0,0.89877466]
[1721764942444,0.00858,65763.0,65762.0,1.39300166]
[1721764942445,0.00028132,65763.0,65762.0,1.39300166]
[1721764942646,0.00028132,65763.0,65762.0,2.22319565]
[1721764942927,0.00028132,65763.0,65762.0,2.20919565]
[1721764943139,0.0147984,65769.0,65768.0,1.27138699]
[1721764943358,0.0147984,65769.0,65768.0,1.92379299]
[1721764943814,0.0147984,65769.0,65768.0,2.02374184]
[1721764944035,0.0147984,65769.0,65768.0,2.39524084]
[1721764944453,0.0147984,65769.0,65768.0,2.40924084]
[1721764944875,0.0147984,65769.0,65768.0,2.39524084]
[1721764945091,0.0147984,65769.0,65768.0,1.53854284]
[1721764945514,0.0147984,65769.0,65768.0,1.33444384]
[1721764945746,0.0147984,65769.0,65768.0,1.63854284]
[1721764946003,0.0001,65775.0,65768.0,0.77092494]
[1721764946203,0.0001,65775.0,65769.0,0.41847195]
[1721764946462,0.0001,65775.0,65770.0,0.31567795]
[1721764946631,0.0001,65775.0,65771.0,0.41567795]
[1721764946859,0.0001,65775.0,65769.0,0.1]
[1721764947080,0.0001,65775.0,65770.0,0.34847746]
[1721764947252,0.0001,65775.0,65771.0,0.31568663]
[1721764947527,0.76019,65773.0,65772.0,0.12627465]
[1721764947744,0.76019,65773.0,65753.0,0.2759]
[1721764947745,0.0863,65761.0,65737.0,0.002794]
[1721764947993,0.0863,65761.0,65723.0,0.24745653]
[1721764947994,0.05,65743.0,65735.0,0.00859065]
[1721764948212,0.88410642,65736.0,65735.0,0.00859065]
[1721764948464,2.20109442,65736.0,65735.0,0.00859065]
[1721764948764,2.20109442,65736.0,65703.0,0.002794]
[1721764948765,0.047,65712.0,65693.0,0.089116]
[1721764949003,0.456661,65694.0,65693.0,0.009416]
[1721764949278,1.32466291,65694.0,65693.0,0.009416]
[1721764949524,1.9636064,65694.0,65693.0,0.009416]
[1721764949743,1.30580016,65694.0,65693.0,0.009416]
[1721764949953,0.05,65694.0,65693.0,0.285316]
[1721764950261,0.0615,65714.0,65693.0,0.3138476]
[1721764950483,0.0615,65714.0,65694.0,0.002794]
[1721764950484,0.152192,65707.0,65694.0,0.002794]
[1721764950687,0.213675,65714.0,65697.0,0.152213]
[1721764950905,0.1,65730.0,65699.0,0.05]
[1721764950906,0.304323,65720.0,65699.0,0.05]
[1721764951122,0.064,65724.0,65700.0,0.30006334]
[1721764951352,0.064,65724.0,65701.0,0.08648856]
[1721764951568,0.064,65724.0,65702.0,0.17001991]
[1721764951782,0.011,65714.0,65709.0,0.148]
[1721764951994,0.011,65714.0,65710.0,0.34095591]
[1721764952214,0.011,65714.0,65713.0,0.152176]
[1721764952426,0.011,65714.0,65713.0,0.72654891]
[1721764952877,0.00862301,65767.0,65713.0,0.72654891]
[1721764952878,0.047,65748.0,65720.0,0.14135999]
[1721764953088,0.152107,65743.0,65722.0,0.35430999]
[1721764953341,0.0609,65749.0,65727.0,0.05]
[1721764953550,0.047,65760.0,65737.0,0.09136]
[1721764953551,0.0609,65758.0,65737.0,0.09136]
[1721764953757,0.0609,65758.0,65738.0,0.030186]
[1721764954013,0.152069,65760.0,65741.0,0.05]
[1721764954225,0.0638,65768.0,65746.0,0.152099]
[1721764954444,0.0001,65775.0,65755.0,0.04999999]
[1721764954666,0.152039,65773.0,65757.0,0.04999999]
[1721764954876,0.0001,65775.0,65757.0,0.1]
[1721764954877,0.004,65758.0,65757.0,0.1]
[1721764955091,0.004,65758.0,65757.0,0.32507499]
[1721764955092,0.005,65758.0,65757.0,0.32507499]
[1721764955299,0.0001,65775.0,65758.0,0.04999999]
[1721764955526,0.0001,65775.0,65759.0,0.17001991]
[1721764955738,0.0001,65775.0,65760.0,0.22628979]
[1721764955959,0.152133,65775.0,65761.0,0.43663443]
[1721764956201,0.152133,65775.0,65762.0,0.22628979]
[1721764956202,0.0001,65775.0,65762.0,0.22628979]
[1721764956414,0.07348942,65769.0,65763.0,0.14928979]
[1721764956612,0.07348942,65769.0,65761.0,0.20264302]
[1721764956613,0.304122,65763.0,65761.0,0.03931829]
[1721764956832,0.152063,65762.0,65761.0,0.03931829]
[1721764957038,0.07348942,65769.0,65761.0,0.03931829]
[1721764957039,0.07348942,65769.0,65761.0,0.06088012]
[1721764957260,0.152057,65765.0,65761.0,0.06088012]
[1721764957471,0.00083,65766.0,65761.0,0.06088012]
[1721764957679,0.00083,65766.0,65762.0,0.12909273]
[1721764957680,0.152061,65763.0,65762.0,0.12909273]
[1721764957870,0.152061,65763.0,65761.0,0.06088012]
[1721764957871,0.00083,65766.0,65761.0,0.07488012]
[1721764958171,0.001,65763.0,65762.0,0.12909416]
[1721764958393,0.001,65763.0,65762.0,0.12630016]
[1721764958590,0.001,65763.0,65762.0,0.14930016]
[1721764958781,0.001,65763.0,65762.0,0.14929317]
[1721764959036,0.001,65763.0,65762.0,0.29631308]
[1721764959228,0.153061,65763.0,65762.0,0.12629317]
[1721764959651,0.153061,65763.0,65761.0,0.06731829]
[1721764959652,0.152063,65762.0,65761.0,0.06731829]
[1721764959833,0.00083,65766.0,65761.0,0.06731829]
[1721764959834,0.00083,65766.0,65761.0,0.03931829]
[1721764960005,0.152063,65762.0,65761.0,0.05331829]
[1721764960209,0.001,65763.0,65761.0,0.05331829]
[1721764960417,0.00083,65766.0,65761.0,0.2003382]
[1721764960614,0.00083,65766.0,65762.0,0.31914191]
[1721764960818,0.00083,65766.0,65763.0,0.12629418]
[1721764961038,0.00083,65766.0,65762.0,0.19284773]
[1721764961039,0.00083,65766.0,65764.0,0.29910809]
[1721764961206,0.00083,65766.0,65765.0,0.12629418]
[1721764961408,0.00083,65766.0,65765.0,0.17183838]
[1721764961685,0.00083,65766.0,65765.0,0.04554403]
[1721764961957,0.00083,65766.0,65765.0,0.023]
[1721764962158,0.00083,65766.0,65763.0,0.002794]
[1721764962370,0.00083,65766.0,65762.0,0.023]
[1721764962371,0.00083,65766.0,65765.0,0.002794]
[1721764962539,0.00083,65766.0,65765.0,0.30562666]
[1721764962953,0.00083,65766.0,65765.0,0.65973966]
[1721764963148,0.152013,65784.0,65770.0,0.0625]
[1721764963353,0.07348942,65783.0,65771.0,0.29631543]
[1721764963674,0.07348942,65783.0,65772.0,0.12629552]
[1721764963892,0.07348942,65783.0,65773.0,0.34633297]
[1721764964112,0.152018,65782.0,65774.0,0.12629552]
[1721764964314,0.0011,65775.0,65774.0,0.29631543]
[1721764964520,0.0011,65775.0,65774.0,0.20501482]
[1721764964744,0.0011,65775.0,65774.0,0.14929552]
[1721764964941,0.0011,65775.0,65774.0,0.18859369]
[1721764966061,0.0011,65775.0,65774.0,0.03931829]
[1721764966062,0.152133,65775.0,65774.0,0.03931829]
[1721764966267,0.456199,65775.0,65774.0,0.03931829]
[1721764966479,0.456199,65775.0,65774.0,0.05331829]
[1721764966480,0.0011,65775.0,65774.0,0.05331829]
[1721764966691,0.0011,65775.0,65774.0,0.16559386]
[1721764966692,0.0001,65775.0,65774.0,0.16559386]
[1721764966909,0.152133,65775.0,65774.0,0.16559386]
[1721764967119,0.0021,65775.0,65774.0,0.17959294]
[1721764967345,0.0021,65775.0,65774.0,0.41261285]
[1721764967553,0.0011,65775.0,65774.0,0.26559294]
[1721764967754,0.0031,65775.0,65774.0,0.34015223]
[1721764967960,0.0011,65775.0,65774.0,0.32915223]
[1721764968167,0.0011,65775.0,65774.0,0.31514851]
[1721764968168,0.0001,65775.0,65774.0,0.31514851]
[1721764968370,0.0001,65775.0,65774.0,0.16558922]
[1721764968576,0.0001,65775.0,65774.0,0.18858922]
[1721764968991,0.456199,65775.0,65774.0,0.03931829]
[1721764969206,0.456199,65775.0,65756.0,0.002794]
[1721764969207,0.0617,65771.0,65756.0,0.002794]
[1721764969417,0.152077,65756.0,65755.0,0.002794]
[1721764969634,0.07348942,65757.0,65748.0,0.002794]
[1721764969635,0.152093,65749.0,65748.0,0.002794]
[1721764969861,0.1,65767.0,65748.0,0.002794]
[1721764969862,0.8,65774.0,65748.0,0.14701991]
[1721764970067,0.0021,65775.0,65749.0,0.29099854]
[1721764970280,0.0021,65775.0,65750.0,0.12633134]
[1721764970281,0.07348942,65764.0,65750.0,0.12633134]
[1721764970491,0.07348942,65764.0,65747.0,0.0006]
[1721764970492,0.152057,65765.0,65751.0,0.27614525]
[1721764970699,0.304108,65767.0,65752.0,0.18942497]
[1721764970915,0.0001,65775.0,65752.0,0.18942497]
[1721764970916,0.001,65756.0,65753.0,0.002794]
[1721764971131,0.001,65756.0,65753.0,0.12912534]
[1721764971132,0.22557142,65754.0,65753.0,0.12912534]
[1721764971338,0.152087,65752.0,65747.0,0.0006]
[1721764971576,0.001,65756.0,65747.0,0.0006]
[1721764971779,0.001,65756.0,65748.0,0.12911613]
[1721764971988,0.001,65756.0,65749.0,0.13938504]
[1721764972194,0.001,65756.0,65750.0,0.002794]
[1721764972403,0.001,65756.0,65748.0,0.275]
[1721764972613,0.001,65756.0,65749.0,0.008794]
[1721764972869,0.001,65756.0,65750.0,0.0285307]
[1721764973071,0.304154,65757.0,65751.0,0.025794]
[1721764973278,0.152082,65754.0,65751.0,0.025794]
[1721764973482,0.152079,65755.0,65751.0,0.025794]
[1721764973730,0.456259,65752.0,65751.0,0.06018647]
[1721764973939,0.456259,65752.0,65749.0,0.014]
[1721764973940,0.456273,65750.0,65749.0,0.014]
[1721764974162,0.456273,65750.0,65747.0,0.0146]
[1721764974163,0.50120191,65750.0,65747.0,0.0146]
[1721764974365,0.50120191,65750.0,65747.0,0.0006]
[1721764974366,0.760477,65748.0,65747.0,0.0006]
[1721764974572,1.21168791,65748.0,65747.0,0.0006]
[1721764974988,1.51587891,65748.0,65747.0,0.0006]
[1721764975194,0.760477,65748.0,65747.0,0.0006]
[1721764975413,1.064668,65748.0,65747.0,0.0006]
[1721764975648,0.001,65754.0,65747.0,0.0006]
[1721764975862,0.152094,65749.0,65747.0,0.0006]
[1721764976067,0.152095,65748.0,65747.0,0.0006]
[1721764976290,0.163091,65750.0,65749.0,0.001]
[1721764976499,0.163091,65750.0,65747.0,0.0006]
[1721764976500,0.315182,65750.0,65747.0,0.0006]
[1721764976720,0.152095,65748.0,65747.0,0.0006]
[1721764976933,0.152093,65749.0,65747.0,0.0006]
[1721764977152,0.152095,65749.0,65747.0,0.0006]
[1721764977361,0.23358442,65748.0,65747.0,0.0016]
[1721764977589,0.160095,65748.0,65747.0,0.0016]
[1721764977798,0.001,65750.0,65747.0,0.0006]
[1721764978054,0.366337,65760.0,65747.0,0.0006]
[1721764978264,0.00858,65778.0,65747.0,0.0006]
[1721764978265,0.0001,65775.0,65750.0,0.09136]
[1721764978477,0.07348942,65774.0,65752.0,0.04999999]
[1721764978698,0.07348942,65774.0,65753.0,0.15212475]
[1721764978699,0.22050933,65774.0,65753.0,0.15212475]
[1721764978923,0.152048,65769.0,65754.0,0.61587541]
[1721764979136,0.0001,65775.0,65754.0,0.61587541]
[1721764979137,0.0001,65775.0,65757.0,0.04999999]
[1721764979404,0.0001,65775.0,65758.0,0.29914466]
[1721764979622,0.0001,65775.0,65760.0,0.304135]
[1721764979832,0.0001,65775.0,65768.0,0.152049]
[1721764980067,0.0001,65775.0,65769.0,0.12633075]
[1721764980325,0.0001,65775.0,65769.0,0.14928637]
[1721764980543,0.0001,65775.0,65770.0,0.12628605]
[1721764980762,0.0001,65775.0,65771.0,0.16814648]
[1721764980982,0.0001,65775.0,65772.0,0.12628605]
[1721764981189,0.0001,65775.0,65773.0,0.12628605]
[1721764981441,0.0001,65775.0,65768.0,0.03931829]
[1721764981442,0.07348942,65774.0,65768.0,0.03931829]
[1721764981661,0.0001,65775.0,65769.0,0.14928606]
[1721764981928,0.07348942,65774.0,65770.0,0.13728606]
[1721764982167,0.152134,65775.0,65771.0,0.14625302]
[1721764982168,0.0001,65775.0,65771.0,0.14625302]
[1721764982406,0.0001,65775.0,65772.0,0.12629259]
[1721764982666,0.0001,65775.0,65771.0,0.01996043]
[1721764982667,0.0001,65775.0,65773.0,0.13729259]
[1721764982904,0.0001,65775.0,65773.0,0.011]
[1721764983145,0.0001,65775.0,65774.0,0.14928412]
[1721764983359,0.0001,65775.0,65774.0,0.52657257]
[1721764983569,0.0001,65775.0,65774.0,0.92760335]
[1721764983776,0.0001,65775.0,65774.0,0.81269269]
[1721764984265,0.0001,65775.0,65774.0,0.66065769]
[1721764984546,0.0001,65775.0,65774.0,0.51363778]
[1721764984757,0.0001,65775.0,65774.0,0.38587744]
[1721764984976,0.0001,65775.0,65774.0,0.39587744]
[1721764985825,0.0001,65775.0,65774.0,0.13627626]
[1721764986450,0.0001,65775.0,65774.0,0.15927626]
[1721764986654,0.0001,65775.0,65774.0,0.17327626]
[1721764986851,0.0001,65775.0,65774.0,0.23330779]
[1721764987070,0.0001,65775.0,65774.0,0.4803277]
[1721764987910,0.0001,65775.0,65774.0,1.2905047]
[1721764988113,0.0001,65775.0,65774.0,1.78593569]
[1721764988321,6e-05,65775.0,65774.0,1.26029369]
[1721764988526,6e-05,65775.0,65774.0,0.5628277]
[1721764988731,0.00089,65775.0,65774.0,0.7148627]
[1721764988981,0.00083,65775.0,65774.0,0.5628277]
[1721764989405,0.00083,65775.0,65774.0,0.56281398]
[1721764990664,0.00083,65775.0,65774.0,0.15026254]
[1721764990900,0.152863,65775.0,65774.0,0.024]
[1721764991104,0.00083,65775.0,65774.0,0.024]
[1721764991728,0.00083,65775.0,65774.0,0.29729891]
[1721764991940,0.00083,65775.0,65774.0,0.36225284]
[1721764992165,0.00083,65775.0,65774.0,0.150279]
[1721764992373,0.00083,65775.0,65774.0,0.024]
[1721764992575,0.00083,65775.0,65774.0,0.15027619]
[1721764994021,0.152863,65775.0,65774.0,0.15027619]
[1721764994245,0.456929,65775.0,65774.0,0.024]
[1721764994477,0.90801491,65775.0,65774.0,0.024]
[1721764994738,1.30908091,65775.0,65774.0,0.024]
[1721764994960,1.25908091,65775.0,65774.0,0.024]
[1721764995171,1.30908091,65775.0,65774.0,0.024]
[1721764995385,1.25908091,65775.0,65774.0,0.01]
[1721764995592,1.30908091,65775.0,65774.0,0.013]
[1721764995808,1.30908091,65775.0,65766.0,0.000913]
[1721764995809,2.218463,65767.0,65766.0,0.000913]
[1721764996053,2.218463,65767.0,65747.0,0.004494]
[1721764996054,0.05,65759.0,65747.0,0.0017]
[1721764996261,0.7,65760.0,65747.0,0.0017]
[1721764996262,0.456286,65748.0,65747.0,0.0017]
[1721764996482,1.064668,65748.0,65747.0,0.0017]
[1721764996718,1.58187891,65748.0,65747.0,0.0017]
[1721764996931,0.97349691,65748.0,65747.0,0.0017]
[1721764997146,1.27768791,65748.0,65747.0,0.0017]
[1721764997598,1.32468791,65748.0,65747.0,0.0017]
[1721764997820,1.78387891,65748.0,65747.0,0.0017]
[1721764998024,1.78487891,65748.0,65747.0,0.0017]
[1721764998246,1.78487891,65748.0,65745.0,0.000913]
[1721764998247,1.214703,65746.0,65745.0,0.000913]
[1721764998462,1.66592391,65746.0,65745.0,0.000913]
[1721764998690,1.56592391,65746.0,65745.0,0.000913]
[1721764998900,1.21172291,65746.0,65745.0,0.000913]
[1721764999133,0.90752191,65746.0,65745.0,0.000913]
[1721764999343,1.51592391,65746.0,65745.0,0.000913]
[1721765000209,1.56592391,65746.0,65745.0,0.000913]
[1721765000637,1.66592391,65746.0,65745.0,0.000913]
[1721765000843,1.52592391,65746.0,65745.0,0.001913]
[1721765001053,1.22772291,65746.0,65745.0,0.002913]
[1721765001293,1.21772291,65746.0,65745.0,0.000913]
[1721765001703,1.22372291,65746.0,65745.0,0.001913]
[1721765002113,1.22372291,65746.0,65745.0,0.000913]
[1721765002114,0.90752191,65746.0,65745.0,0.000913]
[1721765002324,0.05,65752.0,65745.0,0.000913]
[1721765002325,0.07348942,65757.0,65745.0,0.001913]
[1721765002548,0.006,65746.0,65745.0,0.04123129]
[1721765003391,0.016,65746.0,65745.0,0.04223129]
[1721765003846,0.14701991,65757.0,65745.0,0.04023129]
[1721765004051,0.12048942,65767.0,65746.0,0.025794]
[1721765004052,0.063,65766.0,65746.0,0.025794]
[1721765004269,0.152087,65752.0,65747.0,0.02249983]
[1721765004470,0.152087,65752.0,65748.0,0.002794]
[1721765004681,0.152087,65752.0,65746.0,0.023]
[1721765004682,0.152089,65751.0,65747.0,0.002794]
[1721765004899,0.07348942,65760.0,65747.0,0.002794]
[1721765004900,0.304159,65756.0,65747.0,0.002794]
[1721765005131,0.213,65766.0,65746.0,0.025794]
[1721765005132,0.063,65766.0,65746.0,0.025794]
[1721765005365,0.152063,65763.0,65747.0,0.05537636]
[1721765005577,0.008,65766.0,65749.0,0.579186]
[1721765005782,0.008,65766.0,65752.0,0.05]
[1721765006001,0.008,65766.0,65759.0,0.08049]
[1721765006218,0.008,65766.0,65765.0,0.275]
[1721765006435,0.008,65766.0,65765.0,1.15000924]
[1721765006652,0.00568618,65766.0,65765.0,0.98389716]
[1721765006897,0.00083,65775.0,65765.0,0.83184116]
[1721765007157,0.00083,65775.0,65766.0,0.002794]
[1721765007158,0.07348942,65771.0,65766.0,0.002794]
[1721765007372,0.00083,65775.0,65766.0,0.04211229]
[1721765007590,0.00083,65775.0,65767.0,0.0378294]
[1721765007818,0.152049,65768.0,65767.0,0.0148294]
[1721765008032,0.22553742,65769.0,65766.0,0.03931829]
[1721765008263,0.07348942,65769.0,65766.0,0.03931829]
[1721765008479,0.07348942,65769.0,65766.0,0.04931829]
[1721765008687,0.304103,65767.0,65766.0,0.04231829]
[1721765008893,0.07348942,65769.0,65766.0,0.04231829]
[1721765009096,0.07348942,65769.0,65767.0,0.01878183]
[1721765009680,0.22553642,65769.0,65767.0,0.01878183]
[1721765009889,0.07348942,65769.0,65767.0,0.01878183]
[1721765010098,0.001,65769.0,65767.0,0.03278183]
[1721765010305,0.001,65769.0,65768.0,0.02246001]
[1721765010505,0.00083,65775.0,65768.0,0.02246001]
[1721765010506,0.304071,65774.0,65768.0,0.02246001]
[1721765010706,0.152051,65767.0,65766.0,0.03931829]
[1721765010907,0.152061,65763.0,65759.0,0.03931829]
[1721765011117,0.07448942,65769.0,65759.0,0.03931829]
[1721765011118,0.001,65769.0,65759.0,0.03931829]
[1721765011480,0.152037,65774.0,65767.0,0.014]
[1721765011685,0.152037,65774.0,65767.0,0.05331829]
[1721765011686,0.152039,65773.0,65767.0,0.05331829]
[1721765011928,0.07348942,65771.0,65767.0,0.03931829]
[1721765012761,0.152048,65769.0,65768.0,0.006]
[1721765013271,1.06433,65769.0,65768.0,0.006]
[1721765013479,1.06433,65769.0,65760.0,0.03931829]
[1721765013480,0.456196,65761.0,65760.0,0.03931829]
[1721765013893,0.152063,65762.0,65760.0,0.03931829]
[1721765014112,0.20961991,65770.0,65760.0,0.03931829]
[1721765014312,0.13469052,65811.0,65760.0,0.03931829]
[1721765014313,0.08206942,65778.0,65760.0,0.01806183]
[1721765014527,0.08206942,65778.0,65761.0,0.025794]
[1721765014528,0.152052,65767.0,65761.0,0.025794]
[1721765014729,0.15205,65768.0,65761.0,0.025794]
[1721765014904,0.001,65769.0,65767.0,0.014]
[1721765015102,0.001,65769.0,65762.0,0.00831741]
[1721765015329,0.15205,65768.0,65763.0,0.002794]
[1721765015531,0.001,65769.0,65763.0,0.002794]
[1721765015735,0.001,65769.0,65761.0,0.023]
[1721765015736,0.304114,65765.0,65761.0,0.002794]
[1721765015944,0.001,65768.0,65761.0,0.05031141]
[1721765016146,0.152055,65766.0,65761.0,0.05031141]
[1721765016343,0.304104,65767.0,65761.0,0.016794]
[1721765016596,0.001,65768.0,65761.0,0.016794]
[1721765016795,0.001,65768.0,65761.0,0.014]
[1721765017007,0.152061,65763.0,65761.0,0.014]
[1721765017223,0.152059,65764.0,65760.0,0.005]
[1721765017478,0.152059,65764.0,65755.0,0.1413]
[1721765017479,0.304105,65767.0,65756.0,0.002794]
[1721765017692,0.305105,65767.0,65763.0,0.014]
[1721765017899,0.305105,65767.0,65761.0,0.004]
[1721765017900,0.001,65767.0,65761.0,0.004]
[1721765018111,0.001,65767.0,65756.0,0.023]
[1721765018112,0.001,65767.0,65764.0,0.275]
[1721765018334,0.001,65768.0,65766.0,0.002794]
[1721765018532,0.304077,65773.0,65766.0,0.0765]
[1721765018763,0.304062,65776.0,65766.0,0.0765]
[1721765018934,0.08206942,65778.0,65766.0,0.08555]
[1721765018935,0.00858,65778.0,65766.0,0.08555]
[1721765019147,0.001,65767.0,65766.0,0.08555]
[1721765019340,0.001,65767.0,65766.0,0.14786829]
[1721765019553,0.001,65767.0,65766.0,1.0546102]
[1721765019786,0.001,65767.0,65766.0,1.18089434]
[1721765019932,0.001,65767.0,65766.0,0.82678635]
[1721765020345,0.00858,65778.0,65766.0,0.72473235]
[1721765020559,0.001,65768.0,65767.0,0.5064827]
[1721765020765,0.001,65768.0,65767.0,1.41079369]
[1721765020929,0.001,65768.0,65767.0,1.47429369]
[1721765021123,0.00858,65778.0,65774.0,0.43649499]
[1721765021423,0.00858,65778.0,65774.0,1.05096685]
[1721765021545,0.00858,65778.0,65774.0,1.20096684]
[1721765021758,0.00858,65778.0,65774.0,1.15096685]
[1721765022033,0.00858,65778.0,65774.0,1.30096684]
[1721765022363,0.00858,65778.0,65774.0,1.20096684]
[1721765022787,0.00858,65778.0,65774.0,1.15096685]
[1721765023233,0.00858,65778.0,65774.0,1.30096684]
[1721765023477,0.00858,65778.0,65774.0,1.07468269]
[1721765023623,0.00858,65778.0,65774.0,0.92154394]
[1721765023824,0.00858,65778.0,65774.0,0.93554394]
[1721765024277,0.00858,65778.0,65774.0,1.08757894]
[1721765024424,0.00858,65778.0,65774.0,1.39164994]
[1721765024877,0.00858,65778.0,65774.0,1.88708093]
[1721765025031,0.00858,65778.0,65774.0,1.97132469]
[1721765025234,0.0005905,65775.0,65774.0,2.43214025]
[1721765026028,0.0005905,65775.0,65774.0,2.15714025]
[1721765026462,0.0005905,65775.0,65774.0,2.11782196]
[1721765026671,0.0005905,65775.0,65774.0,2.10382196]
[1721765026878,0.0005905,65775.0,65774.0,1.9433104]
[1721765027120,0.0005905,65775.0,65774.0,1.5392394]
[1721765027326,0.0015905,65775.0,65774.0,0.283343]
[1721765027533,0.0015905,65775.0,65774.0,0.1571]
[1721765027740,0.0005905,65775.0,65774.0,0.1571]
[1721765027942,0.0005905,65775.0,65774.0,0.1431]
[1721765028166,0.0015905,65775.0,65774.0,0.13741]
[1721765028380,0.0015905,65775.0,65774.0,0.1096]
[1721765028592,0.0005905,65775.0,65774.0,0.0816]
[1721765028797,0.0005905,65775.0,65774.0,0.22861991]
[1721765029016,0.0005905,65775.0,65774.0,0.43065491]
[1721765029221,0.0005905,65775.0,65774.0,0.71877617]
[1721765029414,0.0005905,65775.0,65774.0,0.44489117]
[1721765029841,0.0005905,65775.0,65774.0,0.46789117]
[1721765029965,0.0015905,65775.0,65774.0,0.33487373]
[1721765030168,0.0015905,65775.0,65774.0,0.44887373]
[1721765030610,0.0005905,65775.0,65774.0,0.42087373]
[1721765030805,0.0015905,65775.0,65774.0,0.44887373]
[1721765031229,0.0015905,65775.0,65774.0,0.58189364]
[1721765031464,0.0005905,65775.0,65774.0,0.58189364]
[1721765031668,0.0015905,65775.0,65774.0,0.59589364]
[1721765031826,0.0015905,65775.0,65774.0,0.58189364]
[1721765032036,0.0015905,65775.0,65774.0,0.59589364]
[1721765032216,0.0015905,65775.0,65774.0,0.81112864]
[1721765032421,0.0015905,65775.0,65774.0,1.41927064]
[1721765033040,0.0015905,65775.0,65774.0,0.81111842]
[1721765033258,0.0015905,65775.0,65774.0,0.79711842]
[1721765033467,0.07348942,65792.0,65774.0,0.65908342]
[1721765033675,0.07348942,65776.0,65775.0,0.12905198]
[1721765033923,0.22550142,65784.0,65775.0,0.12625798]
[1721765034122,0.22550142,65784.0,65774.0,0.13931829]
[1721765034123,0.22550242,65784.0,65776.0,0.16768956]
[1721765034450,0.22550342,65784.0,65777.0,0.12625798]
[1721765034753,0.304013,65787.0,65778.0,0.15975876]
[1721765034990,0.21021991,65791.0,65779.0,0.12905198]
[1721765035193,0.21021991,65791.0,65780.0,0.12626696]
[1721765035399,0.21021991,65791.0,65781.0,0.0157001]
[1721765035634,0.152014,65784.0,65781.0,0.002794]
[1721765035810,0.152014,65784.0,65774.0,0.03931829]
[1721765035811,0.152014,65784.0,65775.0,0.002794]
[1721765036014,0.152014,65784.0,65776.0,0.12627048]
[1721765036213,0.152014,65784.0,65777.0,0.01963228]
[1721765036415,0.152014,65784.0,65774.0,0.03931829]
[1721765036416,0.152014,65784.0,65778.0,0.12627045]
[1721765036616,0.304023,65785.0,65779.0,0.12906445]
[1721765036869,0.152019,65782.0,65779.0,0.002794]
[1721765037081,0.152019,65782.0,65777.0,0.014]
[1721765037303,0.304027,65784.0,65777.0,0.014]
[1721765037304,0.152015,65783.0,65778.0,0.12627112]
[1721765037509,0.152015,65783.0,65777.0,0.014]
[1721765037510,0.152019,65781.0,65779.0,0.01795894]
[1721765037716,0.21021991,65791.0,65775.0,0.014]
[1721765037925,0.21021991,65791.0,65776.0,0.002794]
[1721765037926,0.15203,65777.0,65776.0,0.002794]
[1721765038155,0.07348942,65780.0,65779.0,0.014]
[1721765038364,0.83359642,65780.0,65779.0,0.014]
[1721765038587,0.83359642,65780.0,65777.0,0.014]
[1721765038588,0.456081,65778.0,65777.0,0.014]
[1721765039003,0.152028,65778.0,65777.0,0.014]
[1721765039212,0.152026,65778.0,65777.0,0.014]
[1721765039450,0.001,65782.0,65777.0,0.014]
[1721765039652,0.001,65782.0,65778.0,0.43828376]
[1721765039867,0.00858,65799.0,65779.0,0.20293006]
[1721765040080,0.151997,65791.0,65780.0,0.29908376]
[1721765040286,0.00858,65799.0,65781.0,0.12626985]
[1721765040489,0.00858,65799.0,65782.0,0.23396275]
[1721765040716,0.151987,65795.0,65783.0,0.12626985]
[1721765040929,0.151985,65796.0,65784.0,0.15206385]
[1721765041140,0.00858,65799.0,65785.0,0.34511986]
[1721765041342,0.00858,65799.0,65786.0,0.15206385]
[1721765041551,0.00858,65799.0,65787.0,0.27328976]
[1721765041762,0.15198,65798.0,65788.0,0.15206385]
[1721765042017,0.00858,65799.0,65789.0,0.17856762]
[1721765042018,0.151982,65797.0,65789.0,0.17856762]
[1721765042199,0.160558,65799.0,65790.0,0.14926985]
[1721765042459,0.160558,65799.0,65791.0,0.04109058]
[1721765042675,0.00858,65799.0,65791.0,0.04109058]
[1721765042851,0.37744942,65798.0,65791.0,0.04109058]
[1721765043084,0.151983,65797.0,65791.0,0.04109058]